[Event "SixDays Budapest GM-C 09-2024"]
[Site "Budapest"]
[Date "2024.09.25"]
[Round "3.5"]
[White "Palczert, Matyas"]
[Black "Sardana, Rishi"]
[Result "1/2-1/2"]
[ECO "B52"]
[WhiteElo "2345"]
[BlackElo "2477"]
[Annotator "TA"]
[PlyCount "96"]
[EventDate "2024.09.24"]
[EventType "tourn"]
[EventCountry "HUN"]
[SourceTitle "playchess.com"]
[Source "ChessBase"]
[SourceQuality "1"]
[TimeControl "5400+30"]

{[%evp 9,96,10,16,9,30,0,0,0,0,0,0,0,0,0,0,6,13,9,11,13,28,0,0,0,0,0,0,0,0,-16,-8,-10,-19,-41,-40,-36,-10,-7,-11,-62,-67,-98,-52,-50,-53,-49,-47,-47,-54,-55,-47,-62,0,0,0,0,0,0,0,0,0,0,0,-8,-8,-8,0,0,0,0,0,0,0,0,0,0,0,0,0,0,0,-8,-8,-8,-8,-8,-8,-8,-8]} 1. e4 {[%emt 0:00:10]} c5 {[%emt 0:00:18]} 2. Nf3 {[%emt 0:00:08]} d6 {[%emt 0:00:05]} 3. Bb5+ {[%emt 0:00:20]} Bd7 {[%emt 0:00:11]} 4. c4 {[%emt 0:00:16]} Nc6 {[%emt 0:00:34]} 5. O-O {[%emt 0:00:53]} Nf6 {[%emt 0:02:02]} 6. Nc3 {[%emt 0:00:36]} g6 {[%emt 0:00:22]} 7. d4 cxd4 {[%emt 0:00:16]} 8. Nxd4 {[%emt 0:00:57][%cal Oc4c5]} Bg7 {[%emt 0:00:20][%cal Of6e4]} 9. Bxc6 {[%emt 0:00:43]} bxc6 {[%emt 0:00:28]} 10. c5 {[%emt 0:00:49]} O-O {[%emt 0:00:59]} 11. h3 {[%emt 0:00:31]} Qb8 {[%emt 0:03:06]} 12. Re1 {[%emt 0:01:12]} Rd8 {[%emt 0:04:11]} 13. cxd6 {[%emt 0:00:42]} exd6 {[%emt 0:00:51]} 14. Qf3 {[%emt 0:01:47]} h6 {[%emt 0:12:13][%cal Od6d5] [#] Against Bg5} (14... Re8 {looks sharper.} 15. Bg5 Ng4 16. Nxc6 Bxc6 17. hxg4 Qxb2 18. Rec1 Bxc3 19. Qxc3 Qxc3 20. Rxc3 Bxe4 21. f3 Bd5) 15. e5 $1 {[%emt 0:31:11]} dxe5 {[%emt 0:02:47]} 16. Nxc6 {[%emt 0:00:23]} Bxc6 {[%emt 0:00:34]} 17. Qxc6 {[%emt 0:00:08]} a5 {[%emt 0:10:09]} 18. Qf3 {[%emt 0:07:18]} a4 {[%emt 0:05:49]} 19. Qe2 {[%emt 0:04:12][%cal Oe1d1]} Qb4 {[%emt 0:05:24]} 20. a3 {[%emt 0:06:00]} Qb3 {[%emt 0:02:28]} 21. Qf3 {[%emt 0:04:00]} Nd5 {[%emt 0:06:55]} 22. Nxd5 $1 {[%emt 0:02:32]} Rxd5 {[%emt 0:01:41]} 23. Qxb3 $1 {[%emt 0:06:06]} axb3 {[%emt 0:00:49]} 24. Be3 {[%emt 0:12:41]} (24. a4 $11) 24... e4 $15 {[%emt 0:02:02][%cal Oa8c8]} 25. Re2 {[%emt 0:01:33]} Rad8 {[%emt 0:07:55]} (25... f5 $17) 26. a4 {[%emt 0:02:26]} Rd1+ {[%emt 0:03:21]} 27. Re1 $1 {[%emt 0:00:38]} ({Don't go for} 27. Rxd1 $2 Rxd1+ 28. Kh2 Rb1 $19) 27... Rxa1 {[%emt 0:11:13]} 28. Rxa1 {[%emt 0:00:06]} Bxb2 {[%emt 0:00:17][%mdl 4096] Endgame. KRB-KRB} 29. Rb1 {[%emt 0:00:07]} Be5 {[%emt 0:00:09] [#] Threatens to win with ...b2.} 30. f4 $1 {[%emt 0:03:52]} Bc3 {[%emt 0:14:38]} ({Black should play} 30... exf3 $15 31. Rxb3 Rd1+ 32. Kf2 fxg2 33. Kxg2 Ra1 34. Bxh6 Ra2+ (34... Rxa4 35. Be3 $17) 35. Kf3 Rxa4) 31. Rxb3 $11 {[%emt 0:01:41] The position is equal.} Rd3 {[%emt 0:00:05]} 32. Rb8+ {[%emt 0:01:28]} Kg7 {[%emt 0:00:06]} 33. Kf2 {[%emt 0:00:15]} Bd2 {[%emt 0:00:15]} 34. Bxd2 {[%emt 0:00:50]} Rxd2+ {[%emt 0:00:01] KR-KR} 35. Kg3 {[%emt 0:05:20]} g5 {[%emt 0:00:36]} 36. fxg5 {[%emt 0:03:52]} hxg5 {[%emt 0:00:02] aiming for ...f5.} 37. Rb5 {[%emt 0:01:30]} Kg6 {[%emt 0:00:14]} 38. Rb6+ $1 {[%emt 0:00:12]} f6 {[%emt 0:00:19]} 39. a5 {[%emt 0:00:14][%cal Ba4a5,Ba5a6][%mdl 32]} Ra2 {[%emt 0:01:36]} 40. a6 {[%emt 0:00:08]} Kf5 {[%emt 0:00:11]} 41. Rb5+ {[%emt 0:01:29]} Ke6 {[%emt 0:00:02]} 42. h4 {[%emt 0:00:40]} gxh4+ {[%emt 0:03:22]} (42... Rxa6 43. hxg5 fxg5 44. Rxg5) 43. Kf4 {[%emt 0:00:10]} Rxa6 {[%emt 0:02:24] ...Ra2 is the strong threat.} ({Don't play} 43... Rxg2 $6 44. Ra5 Rg8 45. Kxe4 $16) 44. Kxe4 {[%emt 0:00:10]} Ra3 {[%emt 0:00:14]} 45. Kf4 {[%emt 0:01:26]} Rg3 {[%emt 0:00:25]} 46. Rh5 $1 {[%emt 0:00:30]} Rxg2 {[%emt 0:00:09]} 47. Rxh4 {[%emt 0:00:07]} Ra2 {[%emt 0:00:04] ( -> ...Ra4+)} 48. Rh5 $1 {[%emt 0:00:18]} Ra4+ {[%emt 0:00:12] Weighted Error Value: White=0.06 (flawless) /Black=0.05 (flawless) .  Mistake:       	White=1     	Black=2      Inaccurate:     	White=3     	Black=1      OK:         	White=19    	Black=19     Best:        	White=2     	Black=2      Strong:       	White=7     	---} 1/2-1/2

[Event "SixDays Budapest GM-C 09-2024"]
[Site "Budapest"]
[Date "2024.09.26"]
[Round "4.1"]
[White "Aczel, Gergely"]
[Black "Sardana, Rishi"]
[Result "1/2-1/2"]
[ECO "E46"]
[WhiteElo "2460"]
[BlackElo "2477"]
[Annotator "RC"]
[PlyCount "106"]
[EventDate "2024.09.24"]
[EventType "tourn"]
[EventCountry "HUN"]
[SourceTitle "playchess.com"]
[Source "ChessBase"]
[SourceQuality "1"]
[TimeControl "5400+30"]

1. d4 {[%emt 0:11:34]} Nf6 {[%emt 0:00:09]} 2. c4 {[%emt 0:00:06]} e6 {[%emt 0:00:06]} 3. Nc3 {[%emt 0:00:04]} Bb4 {[%emt 0:00:06]} 4. e3 {[%emt 0:00:05]} O-O {[%emt 0:00:09]} 5. Bd2 {[%emt 0:00:03]} d5 {[%emt 0:00:06]} 6. Nf3 {[%emt 0:00:04]} b6 {[%emt 0:00:10]} 7. cxd5 {[%emt 0:00:05]} exd5 {[%emt 0:00:05]} 8. Rc1 {[%emt 0:00:04]} c5 {[%emt 0:00:11]} 9. dxc5 {[%emt 0:00:20]} bxc5 {[%emt 0:00:08]} 10. a3 {[%emt 0:00:12]} Ba5 {[%emt 0:01:16]} 11. Bb5 {[%emt 0:00:06]} a6 {[%emt 0:07:28]} 12. Ba4 {[%emt 0:00:02]} Bg4 {[%emt 0:08:42]} 13. O-O {[%emt 0:00:15]} Ne4 {[%emt 0:23:14]} 14. Nxe4 {[%emt 0:25:06]} dxe4 {[%emt 0:01:45]} 15. Bxa5 {[%emt 0:00:06]} Qxa5 {[%emt 0:00:38]} 16. Rc4 {[%emt 0:13:23]} Rd8 {[%emt 0:23:12]} 17. Qe1 {[%emt 0:09:25]} Qb6 {[%emt 0:05:27]} 18. Rxe4 {[%emt 0:21:18]} Bf5 {[%emt 0:00:45]} 19. Re8+ {[%emt 0:00:15]} Rxe8 {[%emt 0:00:06]} 20. Bxe8 {[%emt 0:00:05]} Kf8 {[%emt 0:03:14]} 21. Qd1 {[%emt 0:06:35]} Kxe8 {[%emt 0:04:22]} 22. Qd5 {[%emt 0:00:08]} Bd7 {[%emt 0:00:48]} 23. Ng5 {[%emt 0:02:03]} h6 {[%emt 0:05:48]} 24. Qxf7+ {[%emt 0:04:31]} Kd8 {[%emt 0:00:04]} 25. Ne4 {[%emt 0:01:11]} Qe6 {[%emt 0:04:35]} 26. Qf8+ {[%emt 0:01:43]} Qe8 {[%emt 0:01:15]} 27. Qf4 {[%emt 0:00:02]} Qe7 {[%emt 0:03:35]} 28. Rd1 {[%emt 0:00:01]} g5 {[%emt 0:00:25]} 29. Qf5 {[%emt 0:00:36]} Kc7 {[%emt 0:02:09]} 30. Qg6 {[%emt 0:00:27]} Be8 {[%emt 0:00:37]} 31. Qf5 {[%emt 0:00:29]} Bd7 {[%emt 0:00:18]} 32. Qg6 {[%emt 0:02:51]} Nc6 {[%emt 0:01:30]} 33. Nf6 {[%emt 0:01:59]} Be6 {[%emt 0:00:20]} 34. Qxh6 {[%emt 0:00:09]} Rf8 {[%emt 0:00:37]} 35. Nd5+ {[%emt 0:01:08]} Bxd5 {[%emt 0:00:05]} 36. Rxd5 {[%emt 0:00:04]} Qe4 {[%emt 0:01:14]} 37. Rd1 {[%emt 0:01:53]} Rd8 {[%emt 0:00:49]} 38. Rf1 {[%emt 0:00:09]} g4 {[%emt 0:00:47]} 39. h3 {[%emt 0:00:31]} gxh3 {[%emt 0:01:15]} 40. Qxh3 {[%emt 0:00:02]} Rd2 {[%emt 0:01:08]} 41. Rc1 {[%emt 0:01:06]} Kb6 {[%emt 0:00:38]} 42. Qh8 {[%emt 0:00:43]} Qf5 {[%emt 0:00:38]} 43. Qh4 {[%emt 0:00:30]} Rxb2 {[%emt 0:00:38]} 44. g4 {[%emt 0:00:12]} Qf3 {[%emt 0:00:34]} 45. g5 {[%emt 0:00:18]} Ne5 {[%emt 0:00:50]} 46. g6 {[%emt 0:00:16]} Qd5 {[%emt 0:00:34]} 47. Qf6+ {[%emt 0:00:21]} Kb5 {[%emt 0:00:29]} 48. a4+ {[%emt 0:00:40]} Ka5 {[%emt 0:00:20]} 49. g7 {[%emt 0:00:13]} Nf3+ {[%emt 0:01:05]} 50. Kf1 {[%emt 0:00:01]} Nd2+ {[%emt 0:00:20]} 51. Kg1 {[%emt 0:01:25]} Nf3+ {[%emt 0:00:27]} 52. Kf1 {[%emt 0:00:01]} Nd2+ {[%emt 0:00:42]} 53. Kg1 {[%emt 0:00:02]} Nf3+ {[%emt 0:00:26]} 1/2-1/2

[Event "SixDays Budapest GM-C 09-2024"]
[Site "Budapest"]
[Date "2024.09.26"]
[Round "4.2"]
[White "Susilodinata, Andrean"]
[Black "Palczert, Matyas"]
[Result "1-0"]
[ECO "A45"]
[WhiteElo "2393"]
[BlackElo "2345"]
[Annotator "RC"]
[PlyCount "55"]
[EventDate "2024.09.24"]
[EventType "tourn"]
[EventCountry "HUN"]
[SourceTitle "playchess.com"]
[Source "ChessBase"]
[SourceQuality "1"]
[TimeControl "5400+30"]

1. d4 {[%emt 0:00:03]} Nf6 {[%emt 0:00:10]} 2. Nc3 {[%emt 0:00:07]} d5 {[%emt 0:00:16]} 3. Bf4 {[%emt 0:00:09]} e6 {[%emt 0:00:28]} 4. Nb5 {[%emt 0:00:07]} Na6 {[%emt 0:00:13]} 5. e3 {[%emt 0:00:02]} Be7 {[%emt 0:00:56]} 6. Nf3 {[%emt 0:00:06]} O-O {[%emt 0:00:36]} 7. h4 {[%emt 0:00:05]} c6 {[%emt 0:11:52]} 8. Nc3 {[%emt 0:00:02]} c5 {[%emt 0:00:37]} 9. h5 {[%emt 0:01:41]} h6 {[%emt 0:08:31]} 10. g4 {[%emt 0:03:16]} cxd4 {[%emt 0:08:14]} 11. exd4 {[%emt 0:00:30]} Qa5 {[%emt 0:02:42]} 12. g5 {[%emt 0:02:39]} hxg5 {[%emt 0:08:26]} 13. Bxg5 {[%emt 0:00:08]} Bd7 {[%emt 0:10:48]} 14. h6 {[%emt 0:19:36]} g6 {[%emt 0:02:57]} 15. h7+ {[%emt 0:05:20]} Kh8 {[%emt 0:01:17]} 16. Ne5 {[%emt 0:00:11]} Qd8 {[%emt 0:03:26]} 17. Qf3 {[%emt 0:00:21]} Be8 {[%emt 0:00:56]} 18. Bh6 {[%emt 0:05:06]} Nb4 {[%emt 0:01:16]} 19. O-O-O {[%emt 0:00:55]} Rc8 {[%emt 0:00:35]} 20. Kb1 {[%emt 0:00:17]} Nc6 {[%emt 0:03:02]} 21. Be2 {[%emt 0:00:31]} a6 {[%emt 0:04:20]} 22. Qf4 {[%emt 0:07:05]} b5 {[%emt 0:01:53]} 23. Rdg1 {[%emt 0:02:13]} b4 {[%emt 0:03:03]} 24. Nd1 {[%emt 0:01:31]} Rc7 {[%emt 0:06:01]} 25. Qh2 {[%emt 0:01:03]} Bd7 {[%emt 0:00:26]} 26. Rxg6 {[%emt 0:00:35]} fxg6 {[%emt 0:00:06]} 27. Bxf8 {[%emt 0:01:03]} Nxe5 {[%emt 0:00:13]} 28. Bg7+ {[%emt 0:00:06]} 1-0

[Event "SixDays Budapest GM-C 09-2024"]
[Site "Budapest"]
[Date "2024.09.26"]
[Round "4.3"]
[White "Mayank Chakraborty"]
[Black "Grover, Sahaj"]
[Result "1-0"]
[ECO "B40"]
[WhiteElo "2431"]
[BlackElo "2496"]
[Annotator "TA"]
[PlyCount "56"]
[EventDate "2024.09.24"]
[EventType "tourn"]
[EventCountry "HUN"]
[SourceTitle "playchess.com"]
[Source "ChessBase"]
[SourceQuality "1"]
[TimeControl "5400+30"]

{[%evp 9,56,2,12,9,56,14,28,21,28,0,0,0,17,0,0,0,28,20,12,0,0,0,13,9,78,90,101,95,64,66,158,154,159,172,236,248,366,348,1850,1820,29986,1302,29995,323,310,345,343,337,718]} 1. e4 {[%emt 0:00:01]} c5 {[%emt 0:11:06]} 2. Nf3 {[%emt 0:00:09]} e6 {[%emt 0:00:11]} 3. b3 {[%emt 0:00:08]} b6 {[%emt 0:00:08]} 4. d4 {[%emt 0:00:04]} cxd4 {[%emt 0:00:06]} 5. Nxd4 {[%emt 0:00:05]} Bb7 {[%emt 0:00:07]} 6. Nd2 {[%emt 0:00:07]} Qf6 {[%emt 0:11:46]} (6... Nf6 $11) 7. Nc4 {[%emt 0:28:28] Strongly threatening e5.} Bb4+ {[%emt 0:28:51]} 8. Bd2 {[%emt 0:00:09] White has an edge.} Bc5 {[%emt 0:00:06]} 9. Be3 {[%emt 0:10:18] aiming for e5. Active counter play!} Bb4+ {[%emt 0:04:06]} 10. Bd2 {[%emt 0:01:42]} Bc5 {[%emt 0:00:07]} 11. Be3 {[%emt 0:04:32]} Bb4+ {[%emt 0:00:07]} 12. Bd2 {[%emt 0:00:41]} Bc5 {[%emt 0:00:12]} 13. e5 {[%emt 0:03:34]} Qh4 {[%emt 0:02:05]} 14. Be3 $36 {[%emt 0:02:33][%mdl 2048] Hoping for Nb5. White has good play.} Bb4+ {[%emt 0:05:43]} 15. Bd2 {[%emt 0:00:47]} Bc5 {[%emt 0:01:12]} 16. c3 {[%emt 0:03:15] With the idea b4.} Ne7 {[%emt 0:04:13] [#]} (16... Nc6 $11 {remains equal.} 17. Be3 Nxd4 18. Bxd4 Qe4+ 19. Kd2 d5 20. Bxc5 (20. exd6 Bxd4 21. cxd4 Qxd4+ 22. Ke1 Qc3+ 23. Ke2 Bd5 $17) (20. Nd6+ Bxd6 21. exd6 Qf4+ 22. Kc2 Kf8 $11) 20... dxc4) 17. b4 $1 $16 {[%emt 0:01:31]} b5 {[%emt 0:01:03]} 18. Nd6+ {[%emt 0:03:01]} (18. Nxb5 $2 Qxf2#) (18. bxc5 {simplifies} bxc4 19. Nb5 Qe4+ 20. Qe2) 18... Bxd6 {[%emt 0:00:50]} 19. exd6 {[%emt 0:00:11]} Nf5 {[%emt 0:05:07]} ({Black should try} 19... Nd5 $1 $14) 20. Nxf5 {[%emt 0:04:26]} (20. Bxb5 Nxd4 21. cxd4 Bxg2 $17) 20... exf5 {[%emt 0:00:06]} 21. Bxb5 {[%emt 0:07:52]} Bxg2 {[%emt 0:02:12]} (21... O-O $142 22. O-O a6) 22. Rg1 $18 {[%emt 0:00:29]} Be4 {[%emt 0:00:31] Black is weak on the dark squares} (22... a6 {was called for.}) 23. Rxg7 {[%emt 0:01:28] And now Bg5 would win.} a5 $2 {[%emt 0:06:27]} (23... Qxh2 24. Qb3 Qh5) 24. Bg5 {[%emt 0:08:03]} Qxh2 {[%emt 0:01:05]} 25. Qb3 {[%emt 0:01:08]} (25. Qd4 $142 Qg1+ 26. Kd2 (26. Bf1 Nc6 $18) 26... Qxf2+ 27. Qxf2 Nc6 28. Bxc6 h6 29. Bxe4 (29. Bxa8 hxg5 30. Bxe4 axb4 31. Qxf5 Rh2+ 32. Ke3 Re2+ 33. Kxe2 f6 34. Qxd7+ Kf8 35. Qf7#) 29... hxg5 30. Qxf5 (30. Bxa8 axb4 31. Qxf5 bxc3+ 32. Kxc3 Kd8 33. Qxg5+ Kc8 34. Rg8+ Rxg8 35. Qxg8#)) 25... Rf8 {[%emt 0:00:21]} 26. Be7 $2 {[%emt 0:00:27]} (26. Qe6+ {mates} fxe6 27. Re7+ Kd8 28. Rxd7+ (28. Rxh7+ Kc8 $14) 28... Ke8 29. Re7+ Kd8 30. Re8#) 26... Qh1+ {[%emt 0:03:12] [#] White has a decisive advantage.} (26... Qe5 27. Qxf7+ (27. Rxh7 $2 Bd5+ 28. Kf1 Bxb3 $19) 27... Rxf7 28. Rg8+) 27. Bf1 $1 {[%emt 0:01:00][%cal Ob3f7] Intending Qxf7+! and mate. This pair of bishops is nice.} ({Avoid the trap} 27. Kd2 $2 Qh6+ 28. Rg5 f6 $19) 27... Bd5 {[%emt 0:00:22]} 28. c4 {[%emt 0:01:44]} Be6 $2 {[%emt 0:00:19] Weighted Error Value: White=0.25 (precise) /Black=0.68.  Mistake:       	---       	Black=7      Inaccurate:     	White=2     	Black=2      OK:         	White=3     	Black=7      Best:        	White=9     	Black=1      Strong:       	White=1     	---} (28... Qe4+ 29. Qe3 Nc6 30. Bxf8 (30. cxd5 Qxb4+ 31. Qd2 Qe4+ 32. Kd1 Qa4+ 33. Kc1 Nxe7 $14) (30. Rxh7 f4 $18) 30... Kxf8) 1-0

[Event "SixDays Budapest GM-C 09-2024"]
[Site "Budapest"]
[Date "2024.09.26"]
[Round "4.4"]
[White "Zia, Tahsin Tajwar"]
[Black "Gretarsson, Helgi Ass"]
[Result "0-1"]
[ECO "A40"]
[WhiteElo "2255"]
[BlackElo "2450"]
[Annotator "RC"]
[PlyCount "92"]
[EventDate "2024.09.24"]
[EventType "tourn"]
[EventCountry "HUN"]
[SourceTitle "playchess.com"]
[Source "ChessBase"]
[SourceQuality "1"]
[TimeControl "5400+30"]

1. d4 {[%emt 0:04:05]} g6 {[%emt 0:00:06]} 2. c4 {[%emt 0:02:20]} Bg7 {[%emt 0:00:08]} 3. Nf3 {[%emt 0:00:24]} e6 {[%emt 0:02:20]} 4. Nc3 {[%emt 0:00:23]} Ne7 {[%emt 0:00:14]} 5. h4 {[%emt 0:00:27]} h6 {[%emt 0:00:43]} 6. Bf4 {[%emt 0:02:06]} d6 {[%emt 0:00:10]} 7. e4 {[%emt 0:00:16]} Nd7 {[%emt 0:05:00]} 8. Qd2 {[%emt 0:00:07]} b6 {[%emt 0:00:34]} 9. O-O-O {[%emt 0:00:14]} Bb7 {[%emt 0:00:07]} 10. Be2 {[%emt 0:07:06]} a6 {[%emt 0:05:57]} 11. Kb1 {[%emt 0:09:59]} Nf6 {[%emt 0:10:19]} 12. Qc2 {[%emt 0:03:06]} Qd7 {[%emt 0:00:18]} 13. e5 {[%emt 0:09:58]} Ng4 {[%emt 0:00:27]} 14. Rhf1 {[%emt 0:06:17]} Nf5 {[%emt 0:05:34]} 15. Ne1 {[%emt 0:02:26]} h5 {[%emt 0:00:14]} 16. Bf3 {[%emt 0:07:21]} Bxf3 {[%emt 0:14:18]} 17. Nxf3 {[%emt 0:09:15]} O-O {[%emt 0:01:23]} 18. Qe2 {[%emt 0:01:53]} Qc6 {[%emt 0:15:55]} 19. Ne4 {[%emt 0:15:07]} b5 {[%emt 0:02:35]} 20. Rc1 {[%emt 0:07:20]} bxc4 {[%emt 0:10:16]} 21. Rxc4 {[%emt 0:00:06]} Qb6 {[%emt 0:00:04]} 22. Ng3 {[%emt 0:08:45]} Nxd4 {[%emt 0:03:41]} 23. Nxd4 {[%emt 0:00:21]} dxe5 {[%emt 0:00:04]} 24. Nc6 {[%emt 0:01:38]} exf4 {[%emt 0:00:11]} 25. Ne4 {[%emt 0:00:01]} Rfe8 {[%emt 0:06:42]} 26. Qc2 {[%emt 0:00:39]} a5 {[%emt 0:04:23]} 27. Rd1 {[%emt 0:00:34]} Ne5 {[%emt 0:00:15]} 28. Rc5 {[%emt 0:01:12]} Nxc6 {[%emt 0:01:17]} 29. Rxc6 {[%emt 0:00:00]} Qb8 {[%emt 0:00:06]} 30. Rd7 {[%emt 0:00:27]} Rd8 {[%emt 0:00:13]} 31. Rxd8+ {[%emt 0:01:07]} Qxd8 {[%emt 0:00:01]} 32. Rxc7 {[%emt 0:00:14]} Rb8 {[%emt 0:01:33]} 33. b3 {[%emt 0:00:16]} Be5 {[%emt 0:00:22]} 34. Rc4 {[%emt 0:00:47]} Qxh4 {[%emt 0:01:07]} 35. Rc8+ {[%emt 0:00:18]} Kg7 {[%emt 0:00:06]} 36. Rxb8 {[%emt 0:00:40]} Qh1+ {[%emt 0:00:10]} 37. Qc1 {[%emt 0:00:01]} Qxc1+ {[%emt 0:00:06]} 38. Kxc1 {[%emt 0:00:02]} Bxb8 {[%emt 0:00:04]} 39. a3 {[%emt 0:00:24]} f5 {[%emt 0:01:51]} 40. Nd2 {[%emt 0:00:54]} Ba7 {[%emt 0:00:58]} 41. f3 {[%emt 0:00:10]} Be3 {[%emt 0:00:48]} 42. Kc2 {[%emt 0:00:23]} Bxd2 {[%emt 0:00:10]} 43. Kxd2 {[%emt 0:00:01]} Kf7 {[%emt 0:00:07]} 44. Kd3 {[%emt 0:00:48]} Ke7 {[%emt 0:00:06]} 45. Kc4 {[%emt 0:00:43]} g5 {[%emt 0:00:55]} 46. Kd4 {[%emt 0:02:00]} Kd6 {[%emt 0:00:07]} 0-1

[Event "SixDays Budapest GM-C 09-2024"]
[Site "Budapest"]
[Date "2024.09.26"]
[Round "4.5"]
[White "Grebennikov, Nikolai A."]
[Black "Gatineau, Yovann"]
[Result "0-1"]
[ECO "E46"]
[WhiteElo "2220"]
[BlackElo "2400"]
[Annotator "RC"]
[PlyCount "46"]
[EventDate "2024.09.24"]
[EventType "tourn"]
[EventCountry "HUN"]
[SourceTitle "playchess.com"]
[Source "ChessBase"]
[SourceQuality "1"]
[TimeControl "5400+30"]

1. d4 {[%emt 0:14:58]} Nf6 {[%emt 0:00:07]} 2. c4 {[%emt 0:00:29]} e6 {[%emt 0:00:21]} 3. Nc3 {[%emt 0:00:11]} Bb4 {[%emt 0:00:17]} 4. e3 {[%emt 0:00:07]} O-O {[%emt 0:00:27]} 5. Nge2 {[%emt 0:00:09]} c6 {[%emt 0:01:06]} 6. Ng3 {[%emt 0:00:06]} d5 7. Bd3 {[%emt 0:00:24]} dxc4 {[%emt 0:09:19]} 8. Bxc4 {[%emt 0:00:03]} e5 {[%emt 0:00:48]} 9. Qb3 {[%emt 0:06:09]} Bd6 {[%emt 0:08:10]} 10. dxe5 {[%emt 0:04:13]} Bxe5 {[%emt 0:00:12]} 11. a4 {[%emt 0:06:22]} Nbd7 {[%emt 0:04:00]} 12. f4 {[%emt 0:05:27]} Nc5 {[%emt 0:04:42]} 13. Qc2 {[%emt 0:01:00]} Bxc3+ {[%emt 0:06:23]} 14. bxc3 {[%emt 0:04:13]} Re8 {[%emt 0:02:09]} 15. O-O {[%emt 0:00:22]} Be6 {[%emt 0:17:25]} 16. Be2 {[%emt 0:00:33]} Qa5 {[%emt 0:07:33]} 17. Ra3 {[%emt 0:08:46]} Rad8 {[%emt 0:03:32]} 18. e4 {[%emt 0:04:34]} Ncxe4 {[%emt 0:18:30]} 19. Nxe4 {[%emt 0:00:38]} Nxe4 {[%emt 0:00:09]} 20. Qxe4 {[%emt 0:00:11]} Bg4 {[%emt 0:00:13]} 21. Qxe8+ {[%emt 0:00:40]} Rxe8 {[%emt 0:00:05]} 22. Bxg4 {[%emt 0:00:04]} Qc5+ {[%emt 0:00:05]} 23. Kh1 {[%emt 0:06:25]} Qf2 {[%emt 0:00:07]} 0-1